fUST/lending_fUST_20240313
["ID","MTS","AMOUNT","RATE_DAILY","PERIOD"]
[318486371,1710264633743,-160.37161933,0.00015498,2]
[318486373,1710264633752,-558.38864368,0.00015498,2]
[318486375,1710264633761,-179.75548082,0.00015498,2]
[318486377,1710264633770,-404.59380981,0.00015498,2]
[318486379,1710264633780,-580.13342155,0.00015498,2]
[318486380,1710264633789,-633.0,0.00015498,2]
[318486382,1710264633798,-234.24,0.00015498,2]
[318486384,1710264633807,-1951.90972773,0.00015499,2]
[318486386,1710264633816,-155.99696445,0.00015499,2]
[318486388,1710264633826,-191.54658897,0.00015499,2]
[318486390,1710264633834,-3145.34600817,0.00015499,2]
[318486392,1710264633846,-1474.69226491,0.00015499,2]
[318486394,1710264633856,-2222.54358435,0.00015499,5]
[318486396,1710264633865,-524.56091352,0.00015499,2]
[318486398,1710264633875,-165.68066452,0.00015499,2]
[318486400,1710264633885,-690.59173185,0.00015499,2]
[318486402,1710264633894,-320.42430377,0.00015499,2]
[318486404,1710264633903,-155.53579294,0.00015499,2]
[318486406,1710264633913,-500.0,0.00015499,2]
[318486408,1710264633923,-500.0,0.00015499,2]
[318486410,1710264633932,-500.0,0.00015499,2]
[318486412,1710264633942,-500.0,0.00015499,2]
[318486414,1710264633952,-452.24542333,0.00015499,2]
[318486416,1710264633963,-500.0,0.00015499,2]
[318486418,1710264633972,-500.0,0.00015499,2]
[318486420,1710264633982,-500.0,0.00015499,2]
[318486422,1710264633992,-500.0,0.00015499,2]
[318486424,1710264634002,-500.0,0.00015499,2]
[318486426,1710264634012,-500.0,0.00015499,2]
[318486428,1710264634023,-500.0,0.00015499,2]
[318486430,1710264634033,-500.0,0.00015499,2]
[318486432,1710264634043,-500.0,0.00015499,2]
[318486434,1710264634053,-500.0,0.00015499,2]
[318486436,1710264634063,-500.0,0.00015499,2]
[318486438,1710264634072,-608.8,0.00015499,2]
[318486440,1710264634082,-500.0,0.00015499,2]
[318486442,1710264634094,-500.0,0.00015499,2]
[318486444,1710264634104,-500.0,0.00015499,2]
[318486446,1710264634113,-500.0,0.00015499,2]
[318486448,1710264634122,-500.0,0.00015499,2]
[318486450,1710264634132,-500.0,0.00015499,2]
[318486452,1710264634142,-607.8,0.00015499,2]
[318486454,1710264634151,-500.0,0.00015499,2]
[318486456,1710264634161,-500.0,0.00015499,2]
[318486458,1710264634171,-500.0,0.00015499,2]
[318486460,1710264634181,-500.0,0.00015499,2]
[318486461,1710264634190,-500.0,0.00015499,2]
[318486463,1710264634200,-297.74,0.00015499,2]
[318486464,1710264634209,-500.0,0.00015499,2]
[318486465,1710264634218,-500.0,0.00015499,2]
[318486466,1710264634228,-500.0,0.00015499,2]
[318486467,1710264634237,-500.0,0.00015499,2]
[318486468,1710264634247,-500.0,0.00015499,2]
[318486469,1710264634256,-500.0,0.00015499,2]
[318486470,1710264634265,-500.0,0.00015499,2]
[318486471,1710264634275,-500.0,0.00015499,2]
[318486472,1710264634284,-285.06904663,0.00015499,2]
[318486473,1710264634294,-413014.90665028,0.000155,2]
[318486474,1710264634307,-190469.06635028,0.000155,2]
[318486475,1710264634318,-420.06994816,0.000155,2]
[318486476,1710264634330,-20632.32648754,0.000155,2]
[318486477,1710264634344,-512.547576,0.000155,2]
[318486479,1710264634355,-1407.73500005,0.000155,2]
[318486481,1710264634366,-51907.494499,0.000155,2]
[318486483,1710264634378,-12830.6731217,0.000155,2]
[318486484,1710264634396,-26835.09812882,0.000155,2]
[318486487,1710264634407,-16101.45485467,0.000155,2]
[318486571,1710264638384,-1391.34,0.000155,2]
[318486573,1710264638397,-3325.11519767,0.000155,2]
[318486575,1710264638408,-13370.68516104,0.000155,2]
[318486578,1710264638419,-1343.54,0.000155,2]
[318486580,1710264638432,-20850.0,0.000155,2]
[318486707,1710264643049,-19404.4633747,0.000155,2]
[318486708,1710264643072,-13884.0,0.000155,2]
[318486710,1710264643084,-13995.9569903,0.000155,2]
[318486711,1710264643098,-692.77,0.000155,2]
[318486712,1710264643117,-13850.0,0.000155,2]
[318486777,1710264649225,-184.69076473,0.00015499,2]
[318486778,1710264649236,-538.46974569,0.00015499,2]
[318486779,1710264649247,-294.88454091,0.00015499,2]
[318486780,1710264649257,-2066.176004,0.00015499,2]
[318486781,1710264649268,-3500.01988252,0.00015499,2]
[318486782,1710264649278,-1283.50599264,0.00015499,2]
[318486783,1710264649289,-7947.9714481,0.00015499,2]
[318486784,1710264649299,-4876.46533015,0.000155,2]
[318486786,1710264649339,-734.70072308,0.000155,2]
[318486788,1710264649423,-73.17013837,0.000155,2]
[318486789,1710264649435,-1218428.0686214,0.000155,2]
[318486790,1710264651604,-187.18316771,0.00015499,2]
[318486791,1710264651616,-528.47717251,0.00015499,2]
[318486792,1710264651627,-236.20338182,0.00015499,2]
[318486793,1710264651639,-596.40893399,0.00015499,2]
[318486794,1710264651651,-310.0287217,0.00015499,2]
[318486795,1710264651663,-7341.69862443,0.000155,2]
[318486796,1710264651677,-6920.0,0.000155,2]
[318486798,1710264651690,-995.0,0.000155,2]
[318486799,1710264651706,-1930.0,0.000155,2]
[318486801,1710264651719,-13967.65000001,0.000155,2]
[318486803,1710264651731,-4954.47713399,0.000155,2]
[318486804,1710264651743,-1668.07601363,0.000155,2]
[318486805,1710264651755,-3990.32892725,0.000155,2]
[318486806,1710264651767,-17250.0,0.000155,2]
[318486807,1710264651779,-171867.02722967,0.000155,2]
[318497530,1710265832446,-184.69076473,0.00013697,2]
[318497533,1710265832456,-500.0,0.00013698,2]
[318497535,1710265832468,-500.0,0.00013698,2]
[318497537,1710265832479,-500.0,0.00013698,2]
[318497539,1710265832489,-536.101548,0.000139,2]
[318497541,1710265832499,-4758.7644108,0.000139,2]
[318497544,1710265832509,-16174.21087866,0.00014267,2]
[318497547,1710265832525,-4656.12598954,0.00014267,2]
[318497550,1710265832536,-212.90517579,0.0001461,2]
[318497553,1710265832546,-2000.0,0.0001471,2]
[318497556,1710265832557,-581.0,0.000148,2]
[318497560,1710265832566,-634.47649851,0.00014871,2]
[318497563,1710265832577,-201.0608458,0.00015,2]
[318497566,1710265832586,-201.0608458,0.00015,2]
[318497569,1710265832596,-236.20338182,0.00015,2]
[318497572,1710265832606,-500.0,0.00015024,2]
[318497575,1710265832617,-153.0,0.000151,2]
[318497578,1710265832628,-201.0608458,0.000151,2]
[318497581,1710265832639,-201.0608458,0.000151,2]
[318497584,1710265832649,-201.0608458,0.000151,2]
[318497587,1710265832660,-196.7560362,0.000151,2]
[318497589,1710265832668,-392.7238845,0.000151,2]
[318497591,1710265832678,-6933.30037197,0.00015399,2]
[318497593,1710265832687,-4741.68280161,0.000154,2]
[318497594,1710265832698,-3198.64608546,0.000154,2]
[318497596,1710265832707,-235.0614,0.00015423,2]
[318497598,1710265832718,-2000.0,0.0001547,2]
[318497600,1710265832728,-1506.08163674,0.00015483,2]
[318497602,1710265832738,-155.49792318,0.00015483,2]
[318497604,1710265832748,-334.26161942,0.00015498,2]
[318497606,1710265832757,-371.51766219,0.00015498,2]
[318497608,1710265832767,-155.30349036,0.00015498,2]
[318497610,1710265832781,-500.0,0.00015498,2]
[318497612,1710265832791,-2268.27845372,0.00015499,2]
[318497614,1710265832800,-6676.33040791,0.00015499,2]
[318497616,1710265832810,-617.07743668,0.00015499,2]
[318497618,1710265832821,-500.0,0.00015499,2]
[318497620,1710265832830,-500.0,0.00015499,2]
[318497622,1710265832840,-500.0,0.00015499,2]
[318497624,1710265832850,-557.10947549,0.00015499,2]
[318497626,1710265832860,-502.94412023,0.00015499,2]
[318497628,1710265832869,-287.76132348,0.00015499,2]
[318497630,1710265832880,-500.0,0.00015499,2]
[318497632,1710265832889,-473.87260692,0.00015499,2]
[318497635,1710265832904,-608.05773769,0.00015499,2]
[318497636,1710265832913,-500.0,0.00015499,2]
[318497638,1710265832922,-500.0,0.00015499,2]
[318497640,1710265832931,-500.0,0.00015499,2]
[318497642,1710265832944,-500.0,0.00015499,2]
[318497644,1710265832953,-318.04437578,0.00015499,2]
[318497646,1710265832963,-570.81,0.00015499,2]
[318497648,1710265832973,-908042.35860675,0.000155,2]
[318497651,1710265832987,-3481.87572074,0.000155,2]
[318497653,1710265833000,-12622.87836415,0.000155,2]
[318497655,1710265833012,-39410.26720742,0.000155,2]
[318497657,1710265833030,-314.56161178,0.000155,2]
[318498151,1710265839753,-13915.9271826,0.000155,2]
[318498152,1710265839765,-3323.91545302,0.000155,2]
[318498153,1710265839777,-3884.5,0.000155,2]
[318498154,1710265839791,-292.32,0.000155,2]
[318498157,1710265840221,-140279.16810536,0.000155,2]
[318498158,1710265840233,-2919.09999998,0.000155,2]
[318498196,1710265844988,-9843.07827722,0.000155,2]
[318498197,1710265845002,-2592.65617775,0.000155,2]
[318498198,1710265845013,-2831.97882024,0.000155,2]
[318498199,1710265845025,-1987.31304056,0.000155,2]
[318498210,1710265846509,-618.09,0.000155,2]
[318498211,1710265846530,-275246.19089946,0.000155,2]
[318499149,1710265921545,406.17,0.000145,7]
[318499163,1710266010279,500.0,0.000145,7]
[318499164,1710266011044,500.0,0.000145,7]
[318499167,1710266011844,500.0,0.000145,7]
[318499168,1710266012595,500.0,0.000145,7]
[318499169,1710266013368,502.24,0.000145,7]
[318499257,1710266597257,520.34,0.000145,7]
[318499580,1710267032962,-6820.8772333,0.00013838,2]
[318499582,1710267032976,-9701.00958556,0.00013838,2]
[318499584,1710267032987,-4702.19005399,0.00013838,2]
[318499586,1710267032999,-2461.72479292,0.00013838,2]
[318499588,1710267033009,-268.050774,0.0001435,2]
[318499590,1710267033019,-6124.4958135,0.00014363,2]
[318499592,1710267033030,-2000.0,0.00014904,2]
[318499594,1710267033040,-581.0,0.000151,2]
[318499596,1710267033049,-32390.32891884,0.000154,2]
[318499598,1710267033058,-395.51166261,0.0001545,2]
[318499600,1710267033068,-1235.07,0.0001545,2]
[318499602,1710267033077,-1235.07,0.0001545,2]
[318499604,1710267033088,-40013.22256577,0.00015451,2]
[318499606,1710267033098,-1235.07,0.00015498,2]
[318499608,1710267033107,-317.74135761,0.00015499,2]
[318499610,1710267033117,-294.93803503,0.00015499,2]
[318499612,1710267033126,-500.0,0.00015499,2]
[318499613,1710267033135,-500.0,0.00015499,2]
[318499615,1710267033146,-500.0,0.00015499,2]
[318499618,1710267033156,-500.0,0.00015499,2]
[318499619,1710267033166,-170.22579792,0.00015499,2]
[318499622,1710267033179,-500.0,0.00015499,2]
[318499623,1710267033188,-500.0,0.00015499,2]
[318499625,1710267033197,-500.0,0.00015499,2]
[318499627,1710267033207,-500.0,0.00015499,2]
[318499629,1710267033218,-500.0,0.00015499,2]
[318499632,1710267033231,-500.0,0.00015499,2]
[318499633,1710267033242,-500.0,0.00015499,2]
[318499636,1710267033254,-217.58646223,0.00015499,2]
[318499638,1710267033264,-586.85861008,0.00015499,2]
[318499639,1710267033273,-500.0,0.00015499,2]
[318499641,1710267033282,-500.0,0.00015499,2]
[318499642,1710267033291,-222.16,0.00015499,2]
[318499643,1710267033303,-500.0,0.00015499,2]
[318499644,1710267033314,-500.0,0.00015499,2]
[318499645,1710267033323,-340.66040214,0.00015499,2]
[318499646,1710267033334,-1235.07,0.00015499,2]
[318499647,1710267033345,-1235.07,0.00015499,2]
[318499648,1710267033355,-1235.07,0.00015499,2]
[318499649,1710267033364,-1235.07,0.00015499,2]
[318499650,1710267033374,-1235.07,0.00015499,2]
[318499651,1710267033385,-1235.07,0.00015499,2]
[318499652,1710267033396,-1235.07,0.00015499,2]
[318499653,1710267033406,-1235.07,0.00015499,2]
[318499654,1710267033417,-1235.07,0.00015499,2]
[318499655,1710267033427,-1235.07,0.00015499,2]
[318499657,1710267033438,-1235.07,0.00015499,2]
[318499659,1710267033448,-1235.07,0.00015499,2]
[318499661,1710267033459,-1235.07,0.00015499,2]
[318499663,1710267033469,-1235.07,0.00015499,2]
[318499665,1710267033481,-1235.07,0.00015499,2]
[318499667,1710267033490,-1235.07,0.00015499,2]
[318499669,1710267033499,-1235.07,0.00015499,2]
[318499671,1710267033509,-1235.07,0.00015499,2]
[318499673,1710267033518,-1235.07,0.00015499,2]
[318499675,1710267033527,-1235.07,0.00015499,2]
[318499677,1710267033539,-1235.12833739,0.00015499,2]
[318499679,1710267033548,-78334.31297209,0.000155,2]
[318499682,1710267033575,-141836.64195635,0.000155,2]
[318499972,1710267038521,-56627.0,0.000155,2]
[318499977,1710267038540,-38568.02837566,0.000155,2]
[318499979,1710267038551,-709.84,0.000155,2]
[318499984,1710267038569,-12876.92933204,0.000155,2]
[318500569,1710267043765,-272.46061474,0.000155,2]
[318500571,1710267043777,-70802.33726849,0.000155,2]
[318500844,1710267046535,-11537.07166399,0.000155,2]
[318500847,1710267046561,-7067.9,0.000155,2]
[318500854,1710267046621,-83836.87599515,0.000155,2]
[318502294,1710267062226,-500.0,0.0001545,2]
[318502297,1710267062240,-500.0,0.0001545,2]
[318502300,1710267062253,-500.0,0.00015498,2]
[318502302,1710267062263,-158.76983345,0.00015499,2]
[318502304,1710267062272,-500.0,0.00015499,2]
[318502306,1710267062281,-3596.95742148,0.000155,2]
[318502308,1710267062293,-4022.87662856,0.000155,2]
[318502311,1710267062305,-5712.84620933,0.000155,2]
[318502313,1710267062318,-8386.08034504,0.000155,2]
[318502315,1710267062332,-2189.94745636,0.000155,2]
[318508913,1710268234544,-229.02066104,0.00014193,2]
[318508915,1710268234555,-268.050774,0.00014274,2]
[318508917,1710268234566,-1228.0966352,0.00014477,2]
[318508918,1710268234576,-620.72382492,0.00014834,2]
[318508920,1710268234587,-2000.0,0.00015095,2]
[318508922,1710268234598,-581.0,0.000152,2]
[318508924,1710268234609,-285.80259639,0.000153,2]
[318508926,1710268234618,-306.0,0.000153,2]
[318508928,1710268234628,-257.8792595,0.000153,2]
[318508930,1710268234638,-500.0,0.00015399,2]
[318508932,1710268234648,-500.0,0.00015399,2]
[318508934,1710268234657,-268.52357986,0.00015399,2]
[318508936,1710268234667,-500.0,0.00015399,2]
[318508938,1710268234680,-500.0,0.00015399,2]
[318508940,1710268234691,-500.0,0.00015399,2]
[318508942,1710268234701,-500.0,0.00015399,2]
[318508944,1710268234710,-500.0,0.00015399,2]
[318508946,1710268234720,-500.0,0.00015399,2]
[318508948,1710268234731,-500.0,0.00015399,2]
[318508950,1710268234740,-500.0,0.00015399,2]
[318508952,1710268234750,-500.0,0.00015399,2]
[318508954,1710268234759,-227.46611248,0.00015399,2]
[318508956,1710268234769,-500.0,0.00015399,2]
[318508958,1710268234779,-500.0,0.00015399,2]
[318508960,1710268234788,-500.0,0.00015399,2]
[318508962,1710268234796,-500.0,0.00015399,2]
[318508964,1710268234806,-500.0,0.00015399,2]
[318508966,1710268234815,-500.0,0.00015399,2]
[318508968,1710268234824,-406.62021129,0.00015399,2]
[318508970,1710268234835,-500.0,0.00015399,2]
[318508972,1710268234844,-500.0,0.00015399,2]
[318508974,1710268234853,-500.0,0.00015399,2]
[318508976,1710268234863,-333.77856232,0.00015399,2]
[318508978,1710268234872,-500.0,0.00015399,2]
[318508980,1710268234882,-500.0,0.00015399,2]
[318508982,1710268234891,-500.0,0.00015399,2]
[318508984,1710268234901,-163.54571877,0.00015399,2]
[318508986,1710268234910,-90430.03649033,0.000154,2]
[318508988,1710268234920,-4457.27414758,0.000154,2]
[318508990,1710268234929,-216.83818254,0.0001545,2]
[318508992,1710268234940,-500.0,0.0001545,2]
[318508994,1710268234949,-1980.38300213,0.00015498,2]
[318508996,1710268234958,-155.41137118,0.00015498,2]
[318508998,1710268234967,-595.99810704,0.00015499,2]
[318509000,1710268234977,-500.0,0.00015499,2]
[318509002,1710268234986,-500.0,0.00015499,2]
[318509003,1710268234995,-500.0,0.00015499,2]
[318509005,1710268235004,-500.0,0.00015499,2]
[318509007,1710268235013,-500.0,0.00015499,2]
[318509009,1710268235023,-500.0,0.00015499,2]
[318509011,1710268235032,-272.32427809,0.00015499,2]
[318509013,1710268235042,-500.0,0.00015499,2]
[318509015,1710268235052,-500.0,0.00015499,2]
[318509017,1710268235062,-500.0,0.00015499,2]
[318509019,1710268235072,-500.0,0.00015499,2]
[318509021,1710268235082,-500.0,0.00015499,2]
[318509023,1710268235091,-500.0,0.00015499,2]
[318509025,1710268235101,-500.0,0.00015499,2]
[318509027,1710268235111,-453.33701732,0.00015499,2]
[318509029,1710268235122,-500.0,0.00015499,2]
[318509031,1710268235132,-500.0,0.00015499,2]
[318509034,1710268235154,-204.41272195,0.00015499,2]
[318509036,1710268235165,-500.0,0.00015499,2]
[318509038,1710268235176,-500.0,0.00015499,2]
[318509040,1710268235186,-500.0,0.00015499,2]
[318509042,1710268235196,-319.96288176,0.00015499,2]
[318509044,1710268235207,-500.0,0.00015499,2]
[318509046,1710268235218,-500.0,0.00015499,2]
[318509048,1710268235230,-500.0,0.00015499,2]
[318509051,1710268235241,-500.0,0.00015499,2]
[318509052,1710268235253,-530.59322264,0.00015499,2]
[318509054,1710268235263,-500.0,0.00015499,2]
[318509057,1710268235277,-500.0,0.00015499,2]
[318509059,1710268235288,-372.15,0.00015499,2]
[318509061,1710268235299,-500.0,0.00015499,2]
[318509063,1710268235310,-500.0,0.00015499,2]
[318509065,1710268235321,-500.0,0.00015499,2]
[318509067,1710268235332,-500.0,0.00015499,2]
[318509069,1710268235343,-158163.77064167,0.000155,2]
[318509071,1710268235360,-130656.15784398,0.000155,2]
[318509074,1710268235373,-9538.32098032,0.000155,2]
[318509076,1710268235386,-28890.55706098,0.000155,2]
[318509078,1710268235399,-28686.44408894,0.000155,2]
[318509372,1710268238746,-141043.79999999,0.000155,2]
[318509376,1710268238758,-10855.61151914,0.000155,2]
[318509563,1710268241521,-470.49417695,0.000155,2]
[318509571,1710268241595,-6840.7,0.000155,2]
[318509573,1710268241610,-34118.82260964,0.000155,2]
[318509741,1710268245405,-189722.51207199,0.000155,2]
[318509744,1710268245417,-111993.85488713,0.000155,2]
[318509949,1710268246958,-379122.21861652,0.000155,2]
[318509951,1710268246971,-404.57846919,0.000155,2]
[318509960,1710268247045,-18277.16322604,0.000155,2]
[318509962,1710268247056,-3566.55390128,0.000155,2]
[318509964,1710268247068,-5276.5001,0.000155,2]
[318509966,1710268247079,-2446353.98455489,0.000155,2]
[318512328,1710269433134,-3222.73716798,0.00014158,2]
[318512330,1710269433144,-155.35732184,0.00014158,2]
[318512332,1710269433153,-9186.64824408,0.00014159,2]
[318512334,1710269433165,-5130.80529012,0.00014159,2]
[318512336,1710269433175,-172.547835,0.00014365,2]
[318512338,1710269433184,-2000.0,0.00015095,2]
[318512340,1710269433193,-201.0,0.00015241,2]
[318512342,1710269433203,-20553.3223248,0.0001529,2]
[318512344,1710269433214,-23404.15708636,0.0001529,2]
[318512346,1710269433223,-581.0,0.000153,2]
[318512348,1710269433233,-500.0,0.00015399,2]
[318512350,1710269433242,-500.0,0.00015399,2]
[318512352,1710269433251,-500.17243666,0.00015399,2]
[318512354,1710269433260,-500.0,0.00015399,2]
[318512356,1710269433269,-500.0,0.00015399,2]
[318512358,1710269433278,-500.0,0.00015399,2]
[318512360,1710269433286,-300.50685638,0.00015399,2]
[318512362,1710269433296,-500.0,0.00015399,2]
[318512364,1710269433305,-500.0,0.00015399,2]
[318512366,1710269433314,-452.12528904,0.00015399,2]
[318512368,1710269433323,-500.0,0.00015399,2]
[318512370,1710269433332,-7.62575194,0.00015399,2]
[318512942,1710269439064,-492.37424806,0.00015399,2]
[318512945,1710269439075,-500.0,0.00015399,2]
[318512948,1710269439084,-500.0,0.00015399,2]
[318512951,1710269439093,-423.61688521,0.00015399,2]
[318512954,1710269439103,-500.0,0.00015399,2]
[318512956,1710269439112,-529.93305775,0.00015399,2]
[318512959,1710269439122,-286.42355333,0.00015399,2]
[318512961,1710269439132,-500.0,0.00015399,2]
[318512965,1710269439142,-500.0,0.00015399,2]
[318512969,1710269439152,-501.32189944,0.00015399,2]
[318512971,1710269439162,-502.18248914,0.00015399,2]
[318512973,1710269439173,-500.0,0.00015399,2]
[318512976,1710269439184,-554.43205249,0.00015399,2]
[318512980,1710269439194,-645.22334056,0.00015399,2]
[318512984,1710269439204,-435.81533238,0.00015399,2]
[318512986,1710269439215,-500.0,0.00015399,2]
[318512988,1710269439225,-500.0,0.00015399,2]
[318512990,1710269439234,-500.0,0.00015399,2]
[318512992,1710269439244,-327.47714164,0.00015399,2]
[318513312,1710269442629,-172.52285836,0.00015399,2]
[318513314,1710269442639,-341.60590405,0.00015399,2]
[318513317,1710269442649,-501.88365834,0.00015399,2]
[318513318,1710269442658,-500.0,0.00015399,2]
[318513321,1710269442668,-500.0,0.00015399,2]
[318513322,1710269442677,-500.0,0.00015399,2]
[318513324,1710269442687,-500.0,0.00015399,2]
[318513326,1710269442696,-500.0,0.00015399,2]
[318513328,1710269442705,-648.97552868,0.00015399,2]
[318513330,1710269442716,-500.0,0.00015399,2]
[318513332,1710269442725,-500.0,0.00015399,2]
[318513334,1710269442735,-500.0,0.00015399,2]
[318513336,1710269442744,-500.0,0.00015399,2]
[318513338,1710269442753,-300.1357273,0.00015399,2]
[318513340,1710269442762,-500.0,0.00015399,2]
[318513342,1710269442771,-500.0,0.00015399,2]
[318513344,1710269442780,-500.0,0.00015399,2]
[318513346,1710269442789,-500.0,0.00015399,2]
[318513348,1710269442798,-500.0,0.00015399,2]
[318513350,1710269442807,-500.0,0.00015399,2]
[318513352,1710269442816,-204.38139577,0.00015399,2]
[318513354,1710269442829,-295.61860423,0.00015399,2]
[318513357,1710269442839,-500.0,0.00015399,2]
[318513358,1710269442851,-500.0,0.00015399,2]
[318513361,1710269442861,-583.69748019,0.00015399,2]
[318513363,1710269442871,-500.0,0.00015399,2]
[318513365,1710269442883,-570.46041641,0.00015399,2]
[318513367,1710269442896,-500.0,0.00015399,2]
[318513368,1710269442907,-471.028,0.00015399,2]
[318513370,1710269442924,-500.0,0.00015399,2]
[318513372,1710269442934,-500.0,0.00015399,2]
[318513374,1710269442945,-500.0,0.00015399,2]
[318513376,1710269442955,-500.0,0.00015399,2]
[318513378,1710269442968,-500.0,0.00015399,2]
[318513380,1710269442979,-500.0,0.00015399,2]
[318513382,1710269442990,-500.0,0.00015399,2]
[318513384,1710269443001,-500.0,0.00015399,2]
[318513386,1710269443012,-500.0,0.00015399,2]
[318513388,1710269443024,-500.0,0.00015399,2]
[318513390,1710269443035,-500.0,0.00015399,2]
[318513392,1710269443046,-290.59,0.00015399,2]
[318513394,1710269443056,-500.0,0.00015399,2]
[318513396,1710269443067,-500.0,0.00015399,2]
[318513398,1710269443078,-321.64149891,0.00015399,2]
[318513401,1710269443094,-178.35850109,0.00015399,2]
[318513403,1710269443106,-500.0,0.00015399,2]
[318513405,1710269443116,-500.0,0.00015399,2]
[318513408,1710269443128,-500.0,0.00015399,2]
[318513411,1710269443137,-500.0,0.00015399,2]
[318513415,1710269443149,-503.84562375,0.00015399,2]
[318513418,1710269443159,-500.0,0.00015399,2]
[318513421,1710269443169,-500.0,0.00015399,2]
[318513423,1710269443179,-500.0,0.00015399,2]
[318513426,1710269443188,-500.0,0.00015399,2]
[318513428,1710269443198,-500.0,0.00015399,2]
[318513434,1710269443209,-500.0,0.00015399,2]
[318513440,1710269443220,-500.0,0.00015399,2]
[318513445,1710269443230,-37154.36542632,0.000154,2]
[318513453,1710269443242,-81786.33024213,0.000154,2]
[318513823,1710269446987,-6962.31108551,0.000154,2]
[318513825,1710269446997,-153.0,0.000154,2]
[318513827,1710269447008,-310.21407205,0.00015498,2]
[318513828,1710269447019,-199.94838924,0.00015498,2]
[318513829,1710269447029,-404.39010484,0.00015498,2]
[318513830,1710269447039,-500.0,0.00015498,2]
[318513831,1710269447050,-500.0,0.00015498,2]
[318513832,1710269447061,-261.49695275,0.00015498,2]
[318513833,1710269447071,-500.0,0.00015498,2]
[318513834,1710269447082,-216.87758296,0.00015498,2]
[318513835,1710269447093,-554.86894518,0.00015498,2]
[318513836,1710269447103,-500.0,0.00015498,2]
[318513837,1710269447113,-500.0,0.00015498,2]
[318513838,1710269447122,-500.0,0.00015498,2]
[318513839,1710269447133,-500.0,0.00015498,2]
[318513840,1710269447142,-500.0,0.00015498,2]
[318513841,1710269447152,-500.0,0.00015498,2]
[318513843,1710269447161,-500.0,0.00015498,2]
[318513845,1710269447171,-500.0,0.00015498,2]
[318513846,1710269447181,-500.0,0.00015498,2]
[318513847,1710269447190,-155.35732184,0.00015498,2]
[318513848,1710269447199,-7794.50595341,0.00015499,2]
[318513849,1710269447209,-500.0,0.00015499,2]
[318513850,1710269447220,-500.0,0.00015499,2]
[318513851,1710269447230,-644.42187571,0.00015499,2]
[318513852,1710269447239,-500.0,0.00015499,2]
[318513853,1710269447249,-500.0,0.00015499,2]
[318513854,1710269447258,-500.0,0.00015499,2]
[318513855,1710269447267,-500.0,0.00015499,2]
[318513856,1710269447276,-500.0,0.00015499,2]
[318513857,1710269447286,-353.84221465,0.00015499,2]
[318513858,1710269447294,-500.0,0.00015499,2]
[318513859,1710269447303,-393.98110009,0.00015499,2]
[318513860,1710269447312,-500.0,0.00015499,2]
[318513861,1710269447321,-500.0,0.00015499,2]
[318513862,1710269447330,-500.0,0.00015499,2]
[318513863,1710269447339,-500.0,0.00015499,2]
[318513864,1710269447348,-342.27865408,0.00015499,2]
[318513865,1710269447358,-500.0,0.00015499,2]
[318513866,1710269447367,-500.0,0.00015499,2]
[318513867,1710269447376,-500.0,0.00015499,2]
[318513868,1710269447385,-500.0,0.00015499,2]
[318513869,1710269447394,-501.27154064,0.00015499,2]
[318513870,1710269447403,-311.57398225,0.00015499,2]
[318513871,1710269447412,-500.0,0.00015499,2]
[318513872,1710269447421,-500.0,0.00015499,2]
[318513873,1710269447431,-500.0,0.00015499,2]
[318513874,1710269447440,-500.0,0.00015499,2]